[Event "Late-Titled-Tuesday-Blitz-October-03-2023"]
[Site "Chess.com"]
[Date "2023.10.03"]
[Round "3"]
[White "Rodalquilar"]
[Black "YellowJacek"]
[Result "1-0"]
[WhiteElo "2723"]
[BlackElo "2291"]
[TimeControl "180+1"]
[EndTime "14:27:26 PDT"]
[Termination "Rodalquilar won by resignation"]

1. d4 {[%clk 0:03:00.9]} 1... d5 {[%clk 0:02:54.8]} 2. Nf3 {[%clk 0:03:01]} 2...
Nf6 {[%clk 0:02:52.5]} 3. Bf4 {[%clk 0:03:01.2]} 3... c5 {[%clk 0:02:47]} 4. e3
{[%clk 0:03:01.4]} 4... Nc6 {[%clk 0:02:47.9]} 5. Nbd2 {[%clk 0:03:01.6]} 5...
cxd4 {[%clk 0:02:47.6]} 6. exd4 {[%clk 0:03:02]} 6... Bf5 {[%clk 0:02:48.2]} 7.
Bb5 {[%clk 0:03:00.6]} 7... a6 {[%clk 0:02:45.5]} 8. Bxc6+ {[%clk 0:02:59]} 8...
bxc6 {[%clk 0:02:46.4]} 9. c4 {[%clk 0:02:59.4]} 9... Ne4 {[%clk 0:02:27.8]} 10.
Nxe4 {[%clk 0:02:42.3]} 10... Bxe4 {[%clk 0:02:28.7]} 11. O-O {[%clk 0:02:36.6]}
11... e6 {[%clk 0:02:22.5]} 12. c5 {[%clk 0:02:22.6]} 12... Bxf3 {[%clk
0:02:11.4]} 13. Qxf3 {[%clk 0:02:22.6]} 13... Be7 {[%clk 0:02:12.3]} 14. Be5
{[%clk 0:02:13.1]} 14... O-O {[%clk 0:02:10.4]} 15. b4 {[%clk 0:02:11]} 15...
Bf6 {[%clk 0:02:07.7]} 16. Bxf6 {[%clk 0:02:06.3]} 16... Qxf6 {[%clk 0:02:08.6]}
17. Qxf6 {[%clk 0:02:06.3]} 17... gxf6 {[%clk 0:02:09.3]} 18. Rfb1 {[%clk
0:01:58.4]} 18... Rfb8 {[%clk 0:02:09]} 19. Rb3 {[%clk 0:01:58.7]} 19... Kf8
{[%clk 0:02:01.3]} 20. a4 {[%clk 0:01:51.7]} 20... Ke7 {[%clk 0:02:01.3]} 21. f4
{[%clk 0:01:46.9]} 21... Rb7 {[%clk 0:01:47.9]} 22. Rab1 {[%clk 0:01:47]} 22...
Rab8 {[%clk 0:01:46.5]} 23. Kf2 {[%clk 0:01:47.4]} 23... e5 {[%clk 0:01:45.5]}
24. fxe5 {[%clk 0:00:55.2]} 24... fxe5 {[%clk 0:01:46.4]} 25. dxe5 {[%clk
0:00:55.8]} 25... Ke6 {[%clk 0:01:46.4]} 26. Ke3 {[%clk 0:00:56.5]} 26... Kxe5
{[%clk 0:01:42.2]} 27. Kd3 {[%clk 0:00:56.9]} 27... Rg8 {[%clk 0:01:36.2]} 28.
g3 {[%clk 0:00:47.7]} 28... Rg4 {[%clk 0:01:34.2]} 29. Kc2 {[%clk 0:00:46.7]}
29... Rc4+ {[%clk 0:01:29.2]} 30. Kd3 {[%clk 0:00:38.4]} 30... f5 {[%clk
0:01:28.2]} 31. a5 {[%clk 0:00:23]} 31... Re4 {[%clk 0:01:21.1]} 32. R1b2 {[%clk
0:00:22.5]} 32... h5 {[%clk 0:01:20.2]} 33. Kc2 {[%clk 0:00:22.2]} 33... Rh7
{[%clk 0:01:19.9]} 34. Kb1 {[%clk 0:00:16.4]} 34... h4 {[%clk 0:01:19.9]} 35.
Ka2 {[%clk 0:00:16.6]} 35... hxg3 {[%clk 0:01:19.5]} 36. hxg3 {[%clk 0:00:17.5]}
36... Rg7 {[%clk 0:01:17.7]} 37. Rc2 {[%clk 0:00:16.8]} 37... Rgg4 {[%clk
0:01:14.6]} 38. Ka3 {[%clk 0:00:16.8]} 38... Rc4 {[%clk 0:01:07.3]} 39. Re2+
{[%clk 0:00:15.2]} 39... Rge4 {[%clk 0:01:07.4]} 40. Rh2 {[%clk 0:00:15.2]}
40... d4 {[%clk 0:01:00.8]} 41. Rh6 {[%clk 0:00:15.1]} 41... Re3 {[%clk
0:01:01.3]} 42. Rxc6 {[%clk 0:00:12.3]} 42... Rxb3+ {[%clk 0:00:53.4]} 43. Kxb3
{[%clk 0:00:12.7]} 43... Rc3+ {[%clk 0:00:54.3]} 44. Ka4 {[%clk 0:00:12.9]}
44... Rxg3 {[%clk 0:00:55.2]} 45. Rxa6 {[%clk 0:00:13.3]} 45... d3 {[%clk
0:00:54.6]} 46. Rd6 {[%clk 0:00:13.5]} 46... f4 {[%clk 0:00:52]} 47. a6 {[%clk
0:00:13.9]} 47... Ke4 {[%clk 0:00:43.4]} 48. a7 {[%clk 0:00:12.7]} 48... Rg8
{[%clk 0:00:44]} 49. b5 {[%clk 0:00:13.1]} 49... f3 {[%clk 0:00:44.6]} 50. b6
{[%clk 0:00:13.7]} 50... f2 {[%clk 0:00:45.2]} 51. b7 {[%clk 0:00:06]} 51...
f1=Q {[%clk 0:00:44]} 52. Kb5 {[%clk 0:00:04]} 52... Qb1+ {[%clk 0:00:43.1]} 53.
Kc6 {[%clk 0:00:04.3]} 53... Ke3 {[%clk 0:00:34.6]} 54. a8=Q {[%clk 0:00:04.3]}
54... Rxa8 {[%clk 0:00:32.9]} 55. bxa8=Q {[%clk 0:00:05.2]} 55... Qh1+ {[%clk
0:00:31.9]} 56. Rd5 {[%clk 0:00:05]} 56... d2 {[%clk 0:00:29]} 57. Qa3+ {[%clk
0:00:04.8]} 57... Ke2 {[%clk 0:00:29.2]} 58. Qa2 {[%clk 0:00:05.5]} 58... Qh6+
{[%clk 0:00:27.4]} 59. Rd6 {[%clk 0:00:05.9]} 59... Qh1+ {[%clk 0:00:26.5]} 60.
Qd5 {[%clk 0:00:05.8]} 60... Qc1 {[%clk 0:00:23.7]} 61. Qxd2+ {[%clk 0:00:05.6]}
61... Qxd2 {[%clk 0:00:23.4]} 62. Rxd2+ {[%clk 0:00:06.5]} 62... Kxd2 {[%clk
0:00:24.3]} 63. Kd6 {[%clk 0:00:06.9]} 1-0

[Event "Late-Titled-Tuesday-Blitz-October-03-2023"]
[Site "Chess.com"]
[Date "2023.10.03"]
[Round "3"]
[White "Pomberito2"]
[Black "KNVB"]
[Result "0-1"]
[WhiteElo "2470"]
[BlackElo "2695"]
[TimeControl "180+1"]
[EndTime "14:27:29 PDT"]
[Termination "KNVB won by resignation"]

1. d4 {[%clk 0:03:00.9]} 1... Nf6 {[%clk 0:02:57.3]} 2. Nf3 {[%clk 0:03:00.2]}
2... e6 {[%clk 0:02:51.5]} 3. Bg5 {[%clk 0:02:58.1]} 3... h6 {[%clk 0:02:46.1]}
4. Bh4 {[%clk 0:02:57.1]} 4... d6 {[%clk 0:02:45.6]} 5. Nc3 {[%clk 0:02:55.6]}
5... g5 {[%clk 0:02:44.1]} 6. Bg3 {[%clk 0:02:55.1]} 6... Nh5 {[%clk 0:02:44.6]}
7. e4 {[%clk 0:02:51.7]} 7... Nd7 {[%clk 0:02:35.1]} 8. Bd3 {[%clk 0:02:49.4]}
8... Bg7 {[%clk 0:02:32.8]} 9. Qe2 {[%clk 0:02:40.1]} 9... g4 {[%clk 0:01:59.2]}
10. Nd2 {[%clk 0:02:32.2]} 10... Nxg3 {[%clk 0:01:35.3]} 11. hxg3 {[%clk
0:02:31.8]} 11... Bxd4 {[%clk 0:01:34.9]} 12. Qxg4 {[%clk 0:02:29.1]} 12... Qf6
{[%clk 0:01:34.7]} 13. Nf3 {[%clk 0:02:04.7]} 13... Ne5 {[%clk 0:01:14.2]} 14.
Nxe5 {[%clk 0:01:33.3]} 14... Qxf2+ {[%clk 0:01:10.8]} 15. Kd1 {[%clk
0:01:32.7]} 15... Bxe5 {[%clk 0:01:11.3]} 16. Ne2 {[%clk 0:01:20.4]} 16... Bd7
{[%clk 0:00:37.9]} 17. Qf3 {[%clk 0:01:11.7]} 17... Qb6 {[%clk 0:00:25.3]} 18.
Rb1 {[%clk 0:01:10.3]} 18... O-O-O {[%clk 0:00:18.8]} 19. Kd2 {[%clk 0:01:00.6]}
19... Qa5+ {[%clk 0:00:14.7]} 20. c3 {[%clk 0:01:00.2]} 20... Qxa2 {[%clk
0:00:14.7]} 21. Kc2 {[%clk 0:00:35.5]} 21... Qa4+ {[%clk 0:00:05.6]} 22. b3
{[%clk 0:00:33.8]} 22... Qc6 {[%clk 0:00:06.3]} 23. Qe3 {[%clk 0:00:30.2]} 23...
Qb6 {[%clk 0:00:04.1]} 24. Qxb6 {[%clk 0:00:29]} 24... axb6 {[%clk 0:00:05]} 25.
Rbf1 {[%clk 0:00:26.7]} 25... Rh7 {[%clk 0:00:05.2]} 26. Nf4 {[%clk 0:00:26.3]}
26... Rg8 {[%clk 0:00:02.5]} 27. Rh3 {[%clk 0:00:22.2]} 27... Kd8 {[%clk
0:00:02.3]} 28. Rf2 {[%clk 0:00:21.2]} 28... Ke7 {[%clk 0:00:02.5]} 29. Nh5
{[%clk 0:00:21.2]} 29... Bc6 {[%clk 0:00:02.2]} 30. b4 {[%clk 0:00:19.9]} 30...
Rg5 {[%clk 0:00:02.3]} 31. Nf4 {[%clk 0:00:19.1]} 31... Rhg7 {[%clk 0:00:02.2]}
32. Ne2 {[%clk 0:00:17.7]} 32... Bxg3 {[%clk 0:00:02]} 33. Nxg3 {[%clk
0:00:16.4]} 33... Rxg3 {[%clk 0:00:02.9]} 34. Rxh6 {[%clk 0:00:16.5]} 34... Rxg2
{[%clk 0:00:03.3]} 35. Rf6 {[%clk 0:00:17]} 35... Rxf2+ {[%clk 0:00:03.1]} 36.
Rxf2 {[%clk 0:00:17.9]} 36... Rg4 {[%clk 0:00:03.2]} 37. Re2 {[%clk 0:00:17.6]}
37... e5 {[%clk 0:00:03.3]} 38. Kd2 {[%clk 0:00:17.2]} 38... Rf4 {[%clk
0:00:02.2]} 39. Rh2 {[%clk 0:00:17.1]} 39... Bxe4 {[%clk 0:00:01.9]} 40. Bc4
{[%clk 0:00:16.5]} 40... Rg4 {[%clk 0:00:01.5]} 41. Rh8 {[%clk 0:00:14.9]} 41...
d5 {[%clk 0:00:01.8]} 42. Be2 {[%clk 0:00:14.8]} 42... Rg2 {[%clk 0:00:01.8]}
43. Ke3 {[%clk 0:00:15.1]} 43... Rg3+ {[%clk 0:00:02.2]} 44. Kd2 {[%clk
0:00:15.2]} 44... d4 {[%clk 0:00:02.7]} 45. cxd4 {[%clk 0:00:14.9]} 45... exd4
{[%clk 0:00:03.6]} 46. Rc8 {[%clk 0:00:14.5]} 46... Kd7 {[%clk 0:00:03.8]} 47.
Rf8 {[%clk 0:00:14.6]} 47... f5 {[%clk 0:00:03.8]} 48. Rf7+ {[%clk 0:00:14.1]}
48... Kd6 {[%clk 0:00:04.6]} 49. Rf6+ {[%clk 0:00:13.9]} 49... Ke5 {[%clk
0:00:05.3]} 50. Rf7 {[%clk 0:00:14.3]} 50... c5 {[%clk 0:00:04.7]} 51. Re7+
{[%clk 0:00:13.7]} 51... Kd6 {[%clk 0:00:05]} 52. Rf7 {[%clk 0:00:12.2]} 52...
Rg2 {[%clk 0:00:05.2]} 53. Ke1 {[%clk 0:00:10.8]} 53... d3 {[%clk 0:00:05.7]}
54. Bf1 {[%clk 0:00:10.3]} 54... d2+ {[%clk 0:00:05.6]} 55. Kd1 {[%clk
0:00:10.5]} 55... Bf3+ {[%clk 0:00:06.2]} 56. Kc2 {[%clk 0:00:10.5]} 56... d1=Q+
{[%clk 0:00:06.5]} 0-1

[Event "Late-Titled-Tuesday-Blitz-October-03-2023"]
[Site "Chess.com"]
[Date "2023.10.03"]
[Round "3"]
[White "MathiasWomacka"]
[Black "jguerramzllo"]
[Result "0-1"]
[WhiteElo "2522"]
[BlackElo "2724"]
[TimeControl "180+1"]
[EndTime "14:27:32 PDT"]
[Termination "jguerramzllo won on time"]

1. e4 {[%clk 0:03:00.9]} 1... e5 {[%clk 0:02:59]} 2. Nf3 {[%clk 0:03:00.5]} 2...
Nc6 {[%clk 0:02:59]} 3. Bb5 {[%clk 0:03:00.7]} 3... Nf6 {[%clk 0:02:56.7]} 4.
O-O {[%clk 0:02:57.8]} 4... Nxe4 {[%clk 0:02:56.5]} 5. Re1 {[%clk 0:02:58.3]}
5... Nd6 {[%clk 0:02:56.7]} 6. Nxe5 {[%clk 0:02:57.7]} 6... Nxe5 {[%clk
0:02:44.7]} 7. Rxe5+ {[%clk 0:02:58.6]} 7... Be7 {[%clk 0:02:45.2]} 8. Bf1
{[%clk 0:02:58.2]} 8... O-O {[%clk 0:02:45.2]} 9. d4 {[%clk 0:02:58.8]} 9... Bf6
{[%clk 0:02:24.3]} 10. Re1 {[%clk 0:02:57.8]} 10... Nf5 {[%clk 0:02:24]} 11. d5
{[%clk 0:02:57.3]} 11... d6 {[%clk 0:02:17.3]} 12. Nd2 {[%clk 0:02:56.8]} 12...
Bg5 {[%clk 0:02:00.9]} 13. c3 {[%clk 0:02:41.3]} 13... Bd7 {[%clk 0:01:59.6]}
14. Qb3 {[%clk 0:02:35.8]} 14... b6 {[%clk 0:01:56.8]} 15. Nf3 {[%clk
0:02:28.6]} 15... Bxc1 {[%clk 0:01:55.7]} 16. Raxc1 {[%clk 0:02:29.5]} 16... Nh4
{[%clk 0:01:21.7]} 17. Nxh4 {[%clk 0:02:22.1]} 17... Qxh4 {[%clk 0:01:21.8]} 18.
Bb5 {[%clk 0:02:22.1]} 18... Qd8 {[%clk 0:01:13.4]} 19. Qa4 {[%clk 0:02:14.9]}
19... Bxb5 {[%clk 0:01:03.7]} 20. Qxb5 {[%clk 0:02:15.8]} 20... Re8 {[%clk
0:01:04.1]} 21. Qc6 {[%clk 0:02:12.2]} 21... Rc8 {[%clk 0:00:58.9]} 22. g3
{[%clk 0:02:11.9]} 22... Kf8 {[%clk 0:00:50.1]} 23. h4 {[%clk 0:01:59.2]} 23...
Re5 {[%clk 0:00:43.7]} 24. Rxe5 {[%clk 0:01:50.9]} 24... dxe5 {[%clk 0:00:43.8]}
25. Re1 {[%clk 0:01:49.1]} 25... Qd6 {[%clk 0:00:43.4]} 26. Qb7 {[%clk
0:01:06.6]} 26... Re8 {[%clk 0:00:43.1]} 27. Qxa7 {[%clk 0:01:03.6]} 27... e4
{[%clk 0:00:43.4]} 28. Qb7 {[%clk 0:00:50.1]} 28... e3 {[%clk 0:00:38.6]} 29.
Qc6 {[%clk 0:00:36.7]} 29... Qxc6 {[%clk 0:00:14.5]} 30. dxc6 {[%clk 0:00:35.5]}
30... exf2+ {[%clk 0:00:15]} 31. Kxf2 {[%clk 0:00:35.2]} 31... Rd8 {[%clk
0:00:15.7]} 32. Ke3 {[%clk 0:00:32]} 32... Rd6 {[%clk 0:00:15.4]} 33. a4 {[%clk
0:00:27.6]} 33... Rxc6 {[%clk 0:00:15.4]} 34. Kd4 {[%clk 0:00:26.1]} 34... f5
{[%clk 0:00:11.1]} 35. b4 {[%clk 0:00:23.3]} 35... Kf7 {[%clk 0:00:11]} 36. a5
{[%clk 0:00:22.3]} 36... bxa5 {[%clk 0:00:10.1]} 37. bxa5 {[%clk 0:00:22.6]}
37... Rg6 {[%clk 0:00:10]} 38. Ra1 {[%clk 0:00:21.4]} 38... Ra6 {[%clk 0:00:08]}
39. Ke5 {[%clk 0:00:19.1]} 39... Kg6 {[%clk 0:00:07.5]} 40. Ra4 {[%clk
0:00:14.5]} 40... h6 {[%clk 0:00:06.8]} 41. c4 {[%clk 0:00:13.7]} 41... Kh5
{[%clk 0:00:05.8]} 42. Kxf5 {[%clk 0:00:13.4]} 42... g6+ {[%clk 0:00:05.8]} 43.
Kf4 {[%clk 0:00:13.6]} 43... Rf6+ {[%clk 0:00:06]} 44. Ke3 {[%clk 0:00:13.4]}
44... Ra6 {[%clk 0:00:06.2]} 45. c5 {[%clk 0:00:12]} 45... g5 {[%clk 0:00:05.9]}
46. hxg5 {[%clk 0:00:10.8]} 46... Kxg5 {[%clk 0:00:06.3]} 47. Kd3 {[%clk
0:00:11.1]} 47... Kf5 {[%clk 0:00:06.1]} 48. Kc3 {[%clk 0:00:10.8]} 48... Ke5
{[%clk 0:00:06.2]} 49. Kc4 {[%clk 0:00:10.2]} 49... Ra7 {[%clk 0:00:04.6]} 50.
Kb5 {[%clk 0:00:09.8]} 50... Kd5 {[%clk 0:00:03.9]} 51. Rh4 {[%clk 0:00:09.1]}
51... Rb7+ {[%clk 0:00:03.4]} 52. Ka4 {[%clk 0:00:06.3]} 52... Kxc5 {[%clk
0:00:03.3]} 53. Rxh6 {[%clk 0:00:05.9]} 53... Rb1 {[%clk 0:00:03.1]} 54. a6
{[%clk 0:00:03.1]} 54... Rg1 {[%clk 0:00:02.5]} 55. Rg6 {[%clk 0:00:01.1]} 55...
Ra1+ {[%clk 0:00:02.4]} 0-1

[Event "Late-Titled-Tuesday-Blitz-October-03-2023"]
[Site "Chess.com"]
[Date "2023.10.03"]
[Round "3"]
[White "GoltsevDmitry2000"]
[Black "Beca95"]
[Result "1/2-1/2"]
[WhiteElo "2688"]
[BlackElo "2994"]
[TimeControl "180+1"]
[EndTime "14:27:35 PDT"]
[Termination "Game drawn by agreement"]

1. e4 {[%clk 0:02:59]} 1... c5 {[%clk 0:02:59.6]} 2. Nf3 {[%clk 0:02:59.1]} 2...
d6 {[%clk 0:03:00.3]} 3. d4 {[%clk 0:02:59.4]} 3... cxd4 {[%clk 0:03:01.2]} 4.
Nxd4 {[%clk 0:03:00.2]} 4... Nf6 {[%clk 0:03:01.6]} 5. Nc3 {[%clk 0:03:00.5]}
5... a6 {[%clk 0:03:02.2]} 6. f3 {[%clk 0:02:58.2]} 6... e5 {[%clk 0:03:02.2]}
7. Nb3 {[%clk 0:02:58.4]} 7... Be6 {[%clk 0:02:59.8]} 8. Nd5 {[%clk 0:02:57.4]}
8... Bxd5 {[%clk 0:02:58.3]} 9. exd5 {[%clk 0:02:58.1]} 9... Nbd7 {[%clk
0:02:58.9]} 10. Be3 {[%clk 0:02:54.6]} 10... h5 {[%clk 0:02:58.6]} 11. Qd2
{[%clk 0:02:53.2]} 11... Be7 {[%clk 0:02:59.2]} 12. O-O-O {[%clk 0:02:51.3]}
12... Qc7 {[%clk 0:02:59.8]} 13. Kb1 {[%clk 0:02:51.1]} 13... Nb6 {[%clk
0:02:59.4]} 14. Qa5 {[%clk 0:02:43.9]} 14... Rc8 {[%clk 0:02:39.1]} 15. c3
{[%clk 0:02:32.9]} 15... Nc4 {[%clk 0:02:38.8]} 16. Qxc7 {[%clk 0:02:31.9]}
16... Rxc7 {[%clk 0:02:39.3]} 17. Bxc4 {[%clk 0:02:31.6]} 17... Rxc4 {[%clk
0:02:40.2]} 18. Na5 {[%clk 0:02:25.4]} 18... Rc7 {[%clk 0:02:37.6]} 19. Bb6
{[%clk 0:02:25.9]} 19... Rc8 {[%clk 0:02:36.4]} 20. Be3 {[%clk 0:02:13.7]} 20...
Rc7 {[%clk 0:02:34]} 21. Bb6 {[%clk 0:02:13.4]} 21... Rd7 {[%clk 0:02:34.3]} 22.
c4 {[%clk 0:02:12.9]} 22... Bd8 {[%clk 0:02:25.8]} 23. Bxd8 {[%clk 0:02:12]}
23... Kxd8 {[%clk 0:02:26.1]} 24. Rd2 {[%clk 0:01:58.3]} 24... h4 {[%clk
0:02:26.1]} 25. b4 {[%clk 0:01:55.2]} 25... Ke7 {[%clk 0:02:00.7]} 26. Rhd1
{[%clk 0:01:48.3]} 26... Rc8 {[%clk 0:01:59.4]} 27. Kb2 {[%clk 0:01:46.7]} 27...
g5 {[%clk 0:01:59.1]} 28. h3 {[%clk 0:01:24.7]} 28... Nh5 {[%clk 0:01:58]} 29.
Kb3 {[%clk 0:00:59]} 29... Ng3 {[%clk 0:01:57.2]} 30. Kc3 {[%clk 0:00:40.3]}
30... f5 {[%clk 0:01:53.4]} 31. Nb3 {[%clk 0:00:31.6]} 31... b6 {[%clk
0:01:51.5]} 32. c5 {[%clk 0:00:29.6]} 32... bxc5 {[%clk 0:01:51.1]} 33. bxc5
{[%clk 0:00:30]} 33... dxc5 {[%clk 0:01:25.5]} 34. d6+ {[%clk 0:00:30]} 34...
Ke6 {[%clk 0:01:25.8]} 35. Kc4 {[%clk 0:00:29.2]} 35... e4 {[%clk 0:01:25.9]}
36. Nxc5+ {[%clk 0:00:25.5]} 36... Ke5 {[%clk 0:01:20.2]} 37. Rd5+ {[%clk
0:00:23.2]} 37... Kf4 {[%clk 0:01:20.5]} 38. Kb3 {[%clk 0:00:11]} 38... Rxd6
{[%clk 0:01:18.9]} 39. Rxd6 {[%clk 0:00:11.3]} 39... Rxc5 {[%clk 0:01:19.2]} 40.
fxe4 {[%clk 0:00:09.8]} 40... fxe4 {[%clk 0:01:19.1]} 41. Rxa6 {[%clk
0:00:09.3]} 41... e3 {[%clk 0:01:19.6]} 42. Rf6+ {[%clk 0:00:09.2]} 42... Ke5
{[%clk 0:01:16.4]} 43. Rf8 {[%clk 0:00:08.5]} 43... e2 {[%clk 0:01:10.9]} 44.
Re1 {[%clk 0:00:08.8]} 44... Kd4 {[%clk 0:01:08]} 45. Rf3 {[%clk 0:00:09.2]}
45... Rb5+ {[%clk 0:01:01.3]} 46. Kc2 {[%clk 0:00:09.2]} 46... Ra5 {[%clk
0:01:01.1]} 47. a3 {[%clk 0:00:07.8]} 47... Ra6 {[%clk 0:01:00.6]} 48. Kd2
{[%clk 0:00:05.1]} 48... Ra7 {[%clk 0:01:00.7]} 49. Rxe2 {[%clk 0:00:05.5]}
49... Nxe2 {[%clk 0:01:00.4]} 50. Kxe2 {[%clk 0:00:06.4]} 50... Rb7 {[%clk
0:01:00.5]} 51. Kf2 {[%clk 0:00:06.3]} 51... Ke4 {[%clk 0:01:00]} 52. Kg1 {[%clk
0:00:06.2]} 52... Rb1+ {[%clk 0:00:59.4]} 53. Kh2 {[%clk 0:00:06.7]} 53... Ra1
{[%clk 0:00:58.8]} 54. Rc3 {[%clk 0:00:07.1]} 54... Kf5 {[%clk 0:00:59]} 55.
Rc5+ {[%clk 0:00:07.4]} 55... Kg6 {[%clk 0:00:58.4]} 56. Ra5 {[%clk 0:00:08]}
56... Kf6 {[%clk 0:00:56.1]} 57. Ra8 {[%clk 0:00:08.2]} 57... Kg6 {[%clk
0:00:56.4]} 58. a4 {[%clk 0:00:08.8]} 58... Kf6 {[%clk 0:00:56.8]} 59. a5 {[%clk
0:00:09.4]} 59... Kg6 {[%clk 0:00:57.2]} 60. a6 {[%clk 0:00:09.9]} 60... Kg7
{[%clk 0:00:55.3]} 61. g4 {[%clk 0:00:09.2]} 61... hxg3+ {[%clk 0:00:42.6]} 62.
Kxg3 {[%clk 0:00:09.7]} 62... Ra3+ {[%clk 0:00:42.5]} 63. Kg4 {[%clk 0:00:09.9]}
63... Kh7 {[%clk 0:00:42.6]} 64. a7 {[%clk 0:00:05.1]} 64... Ra5 {[%clk
0:00:38.1]} 65. Kf3 {[%clk 0:00:05.3]} 65... Kg7 {[%clk 0:00:38.1]} 66. Ke4
{[%clk 0:00:05.9]} 66... Ra3 {[%clk 0:00:38.1]} 67. Kf5 {[%clk 0:00:05.8]} 67...
Ra5+ {[%clk 0:00:38]} 68. Ke6 {[%clk 0:00:06.5]} 68... Ra1 {[%clk 0:00:37.3]}
69. Kd6 {[%clk 0:00:06.5]} 69... Kh7 {[%clk 0:00:36.3]} 70. Ke6 {[%clk
0:00:06.7]} 70... Kg7 {[%clk 0:00:35.5]} 71. Kf5 {[%clk 0:00:07.1]} 71... Ra5+
{[%clk 0:00:35]} 72. Kg4 {[%clk 0:00:07.7]} 1/2-1/2

[Event "Late-Titled-Tuesday-Blitz-October-03-2023"]
[Site "Chess.com"]
[Date "2023.10.03"]
[Round "3"]
[White "maxip32"]
[Black "Veleamater"]
[Result "1-0"]
[WhiteElo "2547"]
[BlackElo "2322"]
[TimeControl "180+1"]
[EndTime "14:27:36 PDT"]
[Termination "maxip32 won on time"]

1. e4 {[%clk 0:03:00.9]} 1... d6 {[%clk 0:03:00.9]} 2. d4 {[%clk 0:03:00.6]}
2... g6 {[%clk 0:03:01.7]} 3. Nc3 {[%clk 0:03:00.8]} 3... Bg7 {[%clk 0:03:00.5]}
4. Be3 {[%clk 0:03:01]} 4... Nf6 {[%clk 0:03:01]} 5. f3 {[%clk 0:03:00.7]} 5...
O-O {[%clk 0:03:00.6]} 6. Qd2 {[%clk 0:03:01.6]} 6... Nc6 {[%clk 0:02:58.8]} 7.
Nge2 {[%clk 0:02:58.8]} 7... e5 {[%clk 0:02:58.7]} 8. d5 {[%clk 0:02:58.2]} 8...
Ne7 {[%clk 0:02:49.2]} 9. O-O-O {[%clk 0:02:56.7]} 9... h5 {[%clk 0:02:43.7]}
10. h3 {[%clk 0:02:50]} 10... a6 {[%clk 0:02:43.5]} 11. g4 {[%clk 0:02:49.9]}
11... h4 {[%clk 0:02:43.8]} 12. Bg5 {[%clk 0:02:45.7]} 12... b5 {[%clk
0:02:43.8]} 13. Bxh4 {[%clk 0:02:45.1]} 13... Bd7 {[%clk 0:02:43.7]} 14. Bg5
{[%clk 0:02:33.5]} 14... a5 {[%clk 0:02:43.4]} 15. h4 {[%clk 0:02:27.1]} 15...
Nh7 {[%clk 0:02:43.2]} 16. Bh6 {[%clk 0:02:23.3]} 16... b4 {[%clk 0:02:42.4]}
17. Nb1 {[%clk 0:02:23.2]} 17... f5 {[%clk 0:02:41.1]} 18. Bxg7 {[%clk
0:02:21.9]} 18... Kxg7 {[%clk 0:02:41]} 19. gxf5 {[%clk 0:02:21.9]} 19... gxf5
{[%clk 0:02:41]} 20. Rg1+ {[%clk 0:02:22.8]} 20... Kh8 {[%clk 0:02:40.6]} 21.
Qh6 {[%clk 0:02:15.6]} 21... Rf7 {[%clk 0:02:40.8]} 22. Ng3 {[%clk 0:01:22.8]}
22... f4 {[%clk 0:02:35.8]} 23. Nh5 {[%clk 0:01:05.5]} 23... Qf8 {[%clk
0:02:34.9]} 24. Qxf8+ {[%clk 0:01:00.5]} 24... Nxf8 {[%clk 0:02:14.8]} 25. Be2
{[%clk 0:00:51.5]} 25... Nfg6 {[%clk 0:02:14.2]} 26. Rg5 {[%clk 0:00:50.3]}
26... Nxh4 {[%clk 0:02:10.6]} 27. Rh1 {[%clk 0:00:49.4]} 27... Neg6 {[%clk
0:02:09]} 28. Nd2 {[%clk 0:00:40.2]} 28... Raf8 {[%clk 0:02:05.1]} 29. Nxf4
{[%clk 0:00:37.7]} 29... Rh7 {[%clk 0:01:48.3]} 30. Nxg6+ {[%clk 0:00:27.2]}
30... Nxg6 {[%clk 0:01:47.9]} 31. Rxh7+ {[%clk 0:00:28.1]} 31... Kxh7 {[%clk
0:01:47.8]} 32. Nf1 {[%clk 0:00:27.2]} 32... Nf4 {[%clk 0:01:47.2]} 33. Kd2
{[%clk 0:00:26.9]} 33... Kh6 {[%clk 0:01:46.7]} 34. Rg3 {[%clk 0:00:25.6]} 34...
a4 {[%clk 0:01:46.1]} 35. Ne3 {[%clk 0:00:25.3]} 35... Kh5 {[%clk 0:01:37.7]}
36. Bf1 {[%clk 0:00:23.8]} 36... Rf7 {[%clk 0:01:32.9]} 37. Ng2 {[%clk
0:00:18.5]} 37... Nxg2 {[%clk 0:01:28.4]} 38. Bxg2 {[%clk 0:00:19.4]} 38... Kh4
{[%clk 0:01:21.6]} 39. Rg8 {[%clk 0:00:19]} 39... Rh7 {[%clk 0:01:16]} 40. Ke3
{[%clk 0:00:18.6]} 40... Bb5 {[%clk 0:00:55.1]} 41. f4 {[%clk 0:00:16.4]} 41...
exf4+ {[%clk 0:00:54.6]} 42. Kxf4 {[%clk 0:00:17.3]} 42... Rf7+ {[%clk
0:00:54.3]} 43. Ke3 {[%clk 0:00:17.6]} 43... Bf1 {[%clk 0:00:48.4]} 44. Bf3
{[%clk 0:00:15.2]} 44... Bh3 {[%clk 0:00:38.6]} 45. Rh8+ {[%clk 0:00:12.3]}
45... Kg3 {[%clk 0:00:38.4]} 46. Rg8+ {[%clk 0:00:12.9]} 46... Kh4 {[%clk
0:00:34.7]} 47. c4 {[%clk 0:00:13]} 47... bxc3 {[%clk 0:00:31.5]} 48. bxc3
{[%clk 0:00:13.9]} 48... Rh7 {[%clk 0:00:21.4]} 49. c4 {[%clk 0:00:13.9]} 49...
Bd7 {[%clk 0:00:21.1]} 50. e5 {[%clk 0:00:12.3]} 50... dxe5 {[%clk 0:00:20.5]}
51. c5 {[%clk 0:00:12.8]} 51... Bb5 {[%clk 0:00:18.9]} 52. Be4 {[%clk 0:00:11]}
52... Rf7 {[%clk 0:00:14.2]} 53. Bf3 {[%clk 0:00:11.3]} 53... Rf4 {[%clk
0:00:12.9]} 54. Rg7 {[%clk 0:00:07.7]} 54... Rc4 {[%clk 0:00:11.5]} 55. Rxc7
{[%clk 0:00:07.1]} 55... Rc3+ {[%clk 0:00:10.1]} 56. Ke4 {[%clk 0:00:06.8]}
56... Kg3 {[%clk 0:00:05.5]} 57. Bd1 {[%clk 0:00:05.9]} 57... Rc1 {[%clk
0:00:02.6]} 58. Bxa4 {[%clk 0:00:05.9]} 58... Bxa4 {[%clk 0:00:02.6]} 59. Kxe5
{[%clk 0:00:06.8]} 1-0